Cogmind - Beta 13 @@@ ROGUE MODE // 2024.05.11 @ 18:45:28 Player: CanadianCogs Result: Destroyed by Y-45 Defender with Beam Rifle Performance ------------- Evolutions (2) 1000 Regions Visited (3) 600 Robots Destroyed (40) 200 Value Destroyed (1233) 1233 Prototype IDs (3) 60 Alien Tech Used (0) 0 Bonus (49) 49 TOTAL SCORE: 3142 Bonus ------- High Alert Combat Kills 49 Cogmind --------- Core Integrity 0/550 Matter 148/300 Energy 150/150 System Corruption 12% Temperature Cool (10) Movement Hovering (110) Ox1 Location -8/Materials Parts ------- > --- POWER (1) -------- Light Angular Momentum Engine > --- PROPULSION (2) --- Aerolev Unit Cesium-ion Thruster > --- UTILITY (6) ------ Machine Analyzer Improved Terrain Scan Processor Reaction Control System > --- WEAPON (2) ------- Minigun Minigun > --- INVENTORY (5) ---- Reactive Plating Minigun Minigun Mace Great Maul Peak State ------------ > --- POWER ------------ Light Angular Momentum Engine > --- PROPULSION ------- Aerolev Unit Cesium-ion Thruster > --- UTILITY ---------- Improved Heat Sink Machine Analyzer Improved Terrain Scan Processor Reaction Control System Reactive Plating > --- WEAPON ----------- Minigun Minigun > --- INVENTORY -------- Minigun Minigun Mace Great Maul [Rating: 34] Favorites ----------- Power Ion Engine Engine Ion Engine Propulsion Wheel Leg Aluminum Leg Wheel Wheel Hover Unit Aerolev Unit Flight Unit Cesium-ion Thruster Utility Targeting Computer Device Improved Terrain Scanner Storage Medium Storage Unit Processor Targeting Computer Protection Light Armor Plating Weapon Light Cannon Energy Gun Medium Laser Energy Cannon EM Pulse Cannon Ballistic Gun Light Assault Rifle Ballistic Cannon Light Cannon Launcher Grenade Launcher Build | -11 -10 -9 -8 ------- Run | Yrd Mat Mat Mat Slots Evolved 4 | . . 2 2 Power . | . . . . Propulsion . | . . . . Utility 4 | . . 2 2 Weapon . | . . . . Parts Attached 88 | 7 3 39 39 Power 10 | 1 . 4 5 Engine 10 | 1 . 4 5 Core . | . . . . Reactor . | . . . . Propulsion 14 | 2 . 7 5 Treads . | . . . . Leg 2 | . . 2 . Wheel 8 | 2 . 5 1 Hover 3 | . . . 3 Flight 1 | . . . 1 Utility 33 | 2 1 20 10 Device 17 | 2 . 9 6 Storage 1 | . . 1 . Processor 6 | . . 3 3 Hackware . | . . . . Protection 9 | . 1 7 1 Artifact . | . . . . Weapon 31 | 2 2 8 19 Energy Gun 3 | . 1 . 2 Energy Cannon 10 | . . 3 7 Ballistic Gun 7 | 2 . 1 4 Ballistic Cannon 9 | . 1 4 4 Launcher 2 | . . . 2 Special Weapon . | . . . . Impact Weapon . | . . . . Slashing Weapon . | . . . . Piercing Weapon . | . . . . Special Melee Weapon . | . . . . Unidentified Prototypes 3 | . . 2 1 Corrupted Parts 1 | . . . 1 System Corruption 1 | . . . 1 Parts Lost 22 | . . 5 17 Power 3 | . . . 3 Propulsion 4 | . . 1 3 Utility 10 | . . 3 7 Weapon 5 | . . 1 4 Highest Loss Streak 9 | . . 3 9 To Critical Strikes . | . . . . Average Slot Usage (%) 89 | . 100 95 79 Engine 9 | . 14 10 5 Leg 1 | . . 2 . Wheel 14 | . 28 17 5 Hover 2 | . . . 6 Device 14 | . 18 14 14 Storage 2 | . . . 5 Processor 21 | . . 27 24 Protection 2 | . 10 1 . Energy Gun 2 | . 7 1 . Energy Cannon 2 | . . 1 4 Ballistic Gun 5 | . 13 2 6 Ballistic Cannon 8 | . 7 14 2 Naked Turns . | . . . . Heaviest Build 31 | 9 14 24 31 Greatest Support 28 | 20 20 28 26 Greatest Overweight (x) 8 | . . 4 8 Average Overweight (x) . | . . . . Largest Inventory Capacity 10 | 5 5 10 10 Average Capacity 6 | 5 5 5 8 Most Carried 10 | 3 5 8 10 Average Carried 4 | . 3 4 6 Final Capacity 10 | 5 5 10 5 Final Carried 8 | 1 5 8 5 Class Distribution -------------------- 58% | Mutant 33% | Scavenger-Mutant 8% | Scavenger-Skirmisher Dominant Class ---------------- Mutant | -10/Materials Scavenger-Mutant | -9/Materials Mutant | -8/Materials Resources | -11 -10 -9 -8 ----------- Run | Yrd Mat Mat Mat Matter Collected 1358 | 262 82 523 491 Remotely . | . . . . Salvage Created 1193 | 91 158 494 450 Parts 84 | 8 15 40 21 Haulers Intercepted 2 | . 1 1 . Recyclers Shooed . | . . . . Parts Field Recycled . | . . . . Retrieved Matter . | . . . . Parts Self-Destructed . | . . . . Prevented . | . . . . Kills | -11 -10 -9 -8 ------- Run | Yrd Mat Mat Mat Combat Hostiles Destroyed 29 | . 2 13 14 Guns 2 | . . . 2 Cannons 21 | . 2 13 6 AOE 5 | . . . 5 Classes Destroyed 11 | 2 3 3 3 Builder 4 | . 2 2 . Tunneler 1 | 1 . . . Hauler 2 | . 1 1 . Recycler 1 | 1 . . . Mechanic 2 | . . 1 1 Operator 1 | . . 1 . Swarmer 4 | . . . 4 Grunt 21 | . 2 12 7 Sentry 1 | . . 1 . Specialist 2 | . . . 2 Heavy 1 | . . . 1 Best Kill Streak 8 | 1 2 8 4 Combat Bots Only 7 | . 2 7 4 Max Kills in Single Turn 2 | 1 1 2 1 Gunslinging . | . . . . Exploded 1 | . . . 1 Melee . | . . . . Uniques/NPCs Destroyed . | . . . . Combat | -11 -10 -9 -8 -------- Run | Yrd Mat Mat Mat Hostile Shots Fired 224 | . 5 86 133 Missed 57 | . 2 17 38 Damage Taken 2827 | . 32 877 1918 Core 720 | . . 157 563 Absorbed by Shields . | . . . . Regen/Repaired (Parts) 151 | . . 151 . Core Remaining (%) 86 | 100 100 60 . Volleys Fired 120 | 6 22 44 48 Largest 2 | 2 2 2 2 Hottest 136 | 40 85 103 136 Shots Fired 197 | 12 34 86 65 Gun 57 | 12 30 4 11 Cannon 122 | . 4 82 36 Launcher 18 | . . . 18 Special . | . . . . Kinetic 126 | 12 20 80 14 Thermal 35 | . 14 6 15 Explosive 18 | . . . 18 Electromagnetic 18 | . . . 18 Robot Hit Streak 14 | 5 6 8 14 Robot Miss Streak 6 | 1 2 4 6 Penetration Max . | . . . . Secondary Targets . | . . . . Shots Hit Robots 128 | 8 20 54 46 Core Hits 63 | 3 9 20 31 Critical Kills 2 | 1 . . 1 Critical Parts Destroyed . | . . . . Critical Strikes 4 | 1 1 1 1 Destroy 2 | 1 . . 1 Blast 2 | . 1 1 . Melee Attacks . | . . . . Impact . | . . . . Slashing . | . . . . Piercing . | . . . . Sneak Attacks . | . . . . Combat Hostiles . | . . . . Follow-up Attacks . | . . . . Damage Inflicted 2858 | 60 225 1089 1484 Guns 382 | 60 157 25 140 Cannons 1712 | . 68 1064 580 Explosions 715 | . . . 715 Melee . | . . . . Ramming 49 | . . . 49 Kinetic 1425 | 60 135 1055 175 Thermal 311 | . 90 34 187 Explosive 715 | . . . 715 Electromagnetic 358 | . . . 358 Impact . | . . . . Slashing . | . . . . Piercing . | . . . . Highest Corruption 12 | . . 1 12 Average Corruption 6 | . . 1 11 Corruption Purged . | . . . . Corruption Blocked . | . . . . Effects 23 | . . 1 22 Message Errors 2 | . . . 2 Matter Fused 1 | . . . 1 Heat Flow Errors 8 | . . 1 7 Energy Discharges 2 | . . . 2 Data Loss (minor) 4 | . . . 4 Data Loss (major) 1 | . . . 1 Misfires 1 | . . . 1 Alerts 1 | . . . 1 Misdirections 1 | . . . 1 Weapon Failures 2 | . . . 2 Overload Shots . | . . . . Overflow Damage 38 | . . 19 19 Projectiles 19 | . . 19 . Explosions 18 | . . . 18 Melee 1 | . . . 1 Knockbacks 11 | . 1 8 2 Impact 1 | . . . 1 Kinetic 10 | . 1 8 1 Secondary . | . . . . Self-Inflicted Damage 55 | . . . 55 Shots 3 | . . . 3 Rammed 20 | . . . 20 Targets Rammed 20 | . . . 20 Kicked . | . . . . Crushed . | . . . . Highest Temperature 532 | . 155 532 261 Average Temperature 93 | . 54 107 88 Received Heat Transfer 903 | . 18 453 432 Effects 8 | . . 5 3 Energy Bleed 2 | . . 2 . Interference 4 | . . 1 3 Damage (major) 2 | . . 2 . Siege Activations . | . . . . Robots Corrupted 1 | . . . 1 Combat Hostiles 1 | . . . 1 Parts Fried 1 | . . . 1 Impact Corruptions 1 | . . . 1 Robots Melted . | . . . . Combat Hostiles . | . . . . Parts Melted . | . . . . Heat Transferred 666 | . 259 74 333 Parts Sabotaged . | . . . . Parts Stolen . | . . . . Parts Stripped . | . . . . Power Chain Reactions . | . . . . Alert | -11 -10 -9 -8 ------- Run | Yrd Mat Mat Mat Peak Influence 476 | 10 115 397 476 Initial 135 | . 6 48 135 Average 229 | 4 42 244 316 Maximum Alert Level 2 | . . 1 2 Low Security (%) 35 | 100 100 33 4 Level 1 54 | . . 66 70 Level 2 9 | . . . 24 Level 3 . | . . . . Level 4 . | . . . . Level 5 . | . . . . High Security . | . . . . Max Security . | . . . . Squads Dispatched 16 | . 5 7 4 Investigation 11 | . 4 6 1 Extermination . | . . . . Reinforcement 5 | . 1 1 3 Assault . | . . . . Garrison . | . . . . Intercept . | . . . . Searches Triggered . | . . . . Construction Impeded . | . . . . Haulers Reinforced . | . . . . Active Scanning Responses . | . . . . Cargo Convoy Interrupts . | . . . . Stealth | -11 -10 -9 -8 --------- Run | Yrd Mat Mat Mat Distress Signals 4 | . . 1 3 Communications Jammed . | . . . . Distress Signals . | . . . . Times Spotted 58 | . 6 22 30 Peak Tracking Total 8 | . 3 5 8 Tactical Retreats 4 | . . 1 3 Traps | -11 -10 -9 -8 ------- Run | Yrd Mat Mat Mat Traps Triggered . | . . . . Indirectly . | . . . . Trap Hack Attempts . | . . . . Triggered . | . . . . Disarmed . | . . . . Reprogrammed . | . . . . Reused . | . . . . Traps Extracted . | . . . . Installed . | . . . . Triggered . | . . . . Machines | -11 -10 -9 -8 ---------- Run | Yrd Mat Mat Mat Machines Disabled 6 | . . 3 3 Max in Single Turn 1 | . . 1 1 Machines Repaired . | . . . . Machines Dismantled . | . . . . Machines Sabotaged . | . . . . Overloaded Fab Kills . | . . . . Hacking | -11 -10 -9 -8 --------- Run | Yrd Mat Mat Mat Machines Accessed 14 | . 5 7 2 Terminals 9 | . 4 4 1 Fabricators . | . . . . Repair Stations 3 | . 1 1 1 Recycling Units 1 | . . 1 . Scanalyzers 1 | . . 1 . Garrison Access . | . . . . Total Hacks 57 | . 17 33 7 Successful 34 | . 8 24 2 Failed 23 | . 9 9 5 Catastrophic 4 | . . 2 2 Database Lockouts . | . . . . Manual 17 | . 8 9 . Terminals 30 | . 14 13 3 Fabricators . | . . . . Repair Stations 19 | . 3 12 4 Recycling Units 3 | . . 3 . Scanalyzers 5 | . . 5 . Garrison Access . | . . . . Terminal Hacks 9 | . 3 5 1 Record 2 | . . 2 . Locate Traps 4 | . 2 2 . Hauler Manifests 1 | . . 1 . Registered Components 1 | . . . 1 Zone Layout 1 | . 1 . . Fabricator Hacks . | . . . . Repair Station Hacks 9 | . 1 7 1 Scan Component 5 | . 1 4 . Repair 3 | . . 3 . Refit 1 | . . . 1 Recycling Unit Hacks 1 | . . 1 . Retrieve Components 1 | . . 1 . Scanalyzer 5 | . . 5 . Insert Component 2 | . . 2 . Analyze 3 | . . 3 . Garrison Access Hacks . | . . . . Unauthorized Hacks 10 | . 4 6 . Terminals 7 | . 4 3 . Track 1 | . . 1 . Botnet 4 | . 3 1 . Disrupt 1 | . 1 . . Operators 1 | . . 1 . Fabricators . | . . . . Repair Stations 1 | . . 1 . Mechanics 1 | . . 1 . Recycling Units 2 | . . 2 . Recyclers 1 | . . 1 . Tunnel 1 | . . 1 . Scanalyzers . | . . . . Garrison Access . | . . . . Data Cores Recovered 1 | . . 1 . Used 1 | . . 1 . Hacking Detections 13 | . 5 6 2 Full Trace Events 12 | . 5 6 1 Feedback Events 1 | . . 1 . Corruption 1 | . . 1 . Feedback Blocked . | . . . . Robot Schematics Acquired . | . . . . Robots Built . | . . . . Authchips . | . . . . Time . | . . . . Total Robot Build Rating . | . . . . Part Schematics Acquired 2 | . . 2 . Parts Built . | . . . . Authchips . | . . . . Time . | . . . . Total Part Build Rating . | . . . . Parts Repaired 3 | . . 3 . Time 96 | . . 96 . Parts Recycled . | . . . . Recycled Matter . | . . . . Retrieved Matter . | . . . . Retrieved Components 10 | . . 10 . Parts Scanalyzed 2 | . . 2 . Part Schematics Acquired 2 | . . 2 . Parts Damaged . | . . . . Bothacking | -11 -10 -9 -8 ------------ Run | Yrd Mat Mat Mat Used RIF Installer . | . . . . Robots Hacked . | . . . . Non-combat . | . . . . Combat . | . . . . Robot Hacks Applied . | . . . . Relay Couplers Released . | . . . . Fabnet Peak Effective % . | . . . . Robots Rewired 1 | . . . 1 Allies Hacked . | . . . . Hacks Repelled . | . . . . Allies | -11 -10 -9 -8 -------- Run | Yrd Mat Mat Mat Total Allies 1 | . . . 1 Largest Group 1 | . . . 1 Highest-Rated Group 16 | . . . 16 Highest-Rated Ally 16 | . . . 16 Total Orders . | . . . . Ally Attacks 1 | . . . 1 Total Damage . | . . . . Kills . | . . . . Allies Corrupted . | . . . . Allies Melted . | . . . . Intel | -11 -10 -9 -8 ------- Run | Yrd Mat Mat Mat Robot Analysis Total . | . . . . Derelict Logs Recovered . | . . . . Drone Launches . | . . . . Drone Recoveries . | . . . . Exploration | -11 -10 -9 -8 ------------- Run | Yrd Mat Mat Mat Turns Passed 1744 | 80 282 698 684 Spaces Moved 1101 | 63 240 397 401 Core 17 | 7 . 2 8 Treads . | . . . . Legs 37 | . . 37 . Wheels 767 | 56 240 358 113 Hover 276 | . . . 276 Flight 4 | . . . 4 Fastest Speed 35 | 50 80 80 35 Average Speed 88 | 76 80 88 95 Slowest Speed 450 | 80 80 250 450 Overloaded Moves . | . . . . Propulsion Burnouts . | . . . . Robots Hopped . | . . . . Cave-ins Triggered 1 | . . . 1 Exploration Rate (%) 26 | 4 35 40 28 Regions Visited 3 Branch Regions . Pre-discovered Areas 1 | . . 1 . Known Exits Taken . | . . . . Unknown Exits Taken 3 | 1 1 1 . Scrap Searched . | . . . . Spaces Dug . | . . . . Terrain Destroyed 74 | . . . 74 Melee . | . . . . Projectile 4 | . . . 4 AOE 70 | . . . 70 Terrain Rammed . | . . . . Walls Destroyed . | . . . . Machines Disabled . | . . . . Actions | -11 -10 -9 -8 --------- Run | Yrd Mat Mat Mat Total 1678 | 85 299 654 640 Wait 228 | . 24 130 74 Move 1098 | 62 239 396 401 Hop . | . . . . Pick Up 64 | 9 7 24 24 Fast Attach 13 | . 1 8 4 Attach 46 | 7 1 11 27 Detach 9 | . . . 9 Swap 29 | . 1 20 8 Drop 46 | 1 4 21 20 Fire 120 | 6 22 44 48 Melee . | . . . . Ram 20 | . . . 20 Kick . | . . . . Crush . | . . . . Escape Stasis . | . . . . Rewire 5 | . . . 5 Trap . | . . . . Miscellaneous . | . . . . Route ------- -11/Scrapyard -10/Materials -9/Materials (discovered 2 exits: *Mat x2) -8/Materials History --------- Turn | Location | Event 10 | -11/Scrapyard | Discovered new exit (range 15) 81 | -11/Scrapyard | Entered Materials 240 | -10/Materials | Discovered new exit (range 11) 309 | -10/Materials | Build established: Mutant 363 | -10/Materials | Entered another Materials area 363 | -9/Materials | Evolved 2 slots: Utility x2 566 | -9/Materials | Discovered new exit (range 11) 655 | -9/Materials | Destroyed 7 combat bots 789 | -9/Materials | Lost 3 parts (3u) 928 | -9/Materials | Repaired Lgt. Cannon 968 | -9/Materials | Repaired Imp. Terrain Scanner 1002 | -9/Materials | Repaired Imp. Ion Engine 1024 | -9/Materials | Discovered new exit (range 15) 1061 | -9/Materials | Entered another Materials area 1061 | -8/Materials | Evolved 2 slots: Utility x2 1285 | -8/Materials | Crushed by falling debris 1285 | -8/Materials | System corruption reached 10% 1303 | -8/Materials | Core integrity fell below 50% 1329 | -8/Materials | Lost 9 parts (2p2n3u2w) 1465 | -8/Materials | Core integrity fell below 20% 1523 | -8/Materials | Lost 5 parts (1p1n1u2w) 1745 | -8/Materials | Destroyed by Y-45 Defender with Beam Rifle Last Messages --------------- 01573_ Acquired Lgt. Cannon. 01587_ Dropped Lgt. Cannon. 01589_ D OOICODE5XWZOEJJNNTRJK UIGAX 01589_ Acquired Minigun. 01592_ Dropped Hvy. Laser. 01594_ Acquired Minigun. 01610_ System corrupted: Substantial component data lost. 01630_ System corrupted: Heat flow error (+231). 01649_ System corrupted: Heat flow error (+119). 01682_ System corrupted: FCS attempts to trigger Minigun. 01682_ System corrupted: Minigun misfires. 01682_ Hadron Collector disabled. 01686_ K-01 Serf collects debris. 01693_ W-25 Informer sends out distress signal. 01700_ System corrupted: Energy discharge (-57). 01728_ Imp. Heat Sink destroyed. 01735_ W-25 Informer sends out distress signal. 01736_ System corrupted: Matter fused (-9). 01739_ ALERT: Hostiles spotted, dispatching reinforcements to Terminal M001. Map ----- +----------------------------------------------------+ | ?????????????????????????????????????????????????? | | ?????????????????????????????????????????????????? | | ????????????????? ???????????????????????????????? | | ???????????????//????????????????????????????????? | | ????????????# ??????????????????????????????????? | | ?????????? /????????????????????????????????????? | | #####??? #??????????????????????????????????????? | | ## #??????????????????????????????????????? | | "" + #???????????#######????????????????????? | | " ##### #???#+###+### #????????????????????? | | "" #???# ##### #####????????????????? | | "" #????? +????????????????? | | #????????????# #????????????????????? | | #/##################/## #????????????????????? | | / ##g ##????????????????????? | | # ############## ! =!!##gYg#?????????????????????? | | # #????????????# =! ## #?????????????????????? | | # #????????????# !! ## #?????????????????????? | | # #????????????#* ## ##????????????????????? | | # #????????????# !# #?????????????=??????? | | # #????????????####/### #????????????????????? | | # #???????????????# #?# #????????????????????? | | # ###?????????????# #?#! #????????????????????? | | #?????????????# ??# #????????????????????? | | #?????????????# ??### ###????????????????????? | | #?????????????# ????#@#??????????????????????? | | #?????????????? ????# #???????????????!??????? | | #?????????????? ????# ??????????????????????? | | #########??????? ????# ??????????????????????? | | # % #??????? ????#Y ?????????????????????? | | + " " #???????????? r ?????????????????????? | | # "G" #????????????#####????????????????????? | | # """ !#?????????????????????????????????????? | | # #???????????????????????T?????????????? | | #########?????????????????????????????????????? | | #??????????????"""????????????????????????????? | | ####???????????"""????????????????????????????? | | !##??????????"""????????????????????????????? | | !#?????????????????????????????????????????? | | !#?????????????????????????????????????????? | | !#?????????????????????????????????????????? | | !#?????????????????????????????????????????? | | !##?????????????????????????????????????????? | | ####??????????????????????????????????????????? | | #?????????????????????????????????????????????? | | #?????????????????????????????????????????????? | | #?????????????????????????????????????????????? | | #?????????????????????????????????????????????? | | #?????????????????????????????????????????????? | | #?????????########????????????????????????????? | +----------------------------------------------------+ Best States ------------- Heat Dissipation 59 Energy Generation 18 Energy Capacity 280 Matter Stores 300 Matter Capacity 300 Sight Range 16 Terrain Scan Range 16 Terrain Scan Density 210 Additional Mass Support 6 Armor Coverage 300 Resistance: KI 20 Evasion (%) 63 Targeting Accuracy 5 Item Schematics ----------------- Lgt. Armor Plating | -9/Materials | Scanalyzed Datajack | -9/Materials | Scanalyzed Robot Schematics ------------------ None Fabricated ------------ Nothing Alien Tech Used ----------------- None Achievements -------------- None Challenges ------------ None Game ------ Seed SubatomicSalvageSystem Manual? 0 Play Time 00:45:47 Cumulative 23.3 hours Start 2024.05.11 @ 17:53:26 End 2024.05.11 @ 18:45:28 Sessions 1 Manual Loads 0 Difficulty Rogue Special Mode None Game No. 34 Rogue 34 Adventurer 0 Explorer 0 Win Type - Total 0 Types 0/0/0/0/0/0/0/0/0 Lore% 18 Gallery% 23 Achievement% 22 Wizard Run 0 Options --------- Layout 0 ASCII 0 Keyboard 0 Movement Mouse Keybinds 0 Fullscreen 2 Font 18/SmallcapsGlow Map View 38x25 Zoom Use 99% Tactical HUD 1 Map Filters NONE Filters NONE Steam 1 RUN: f92a42d0-7c34-4ee9-8ef3-688bdf054260